fUST/lending_fUST_20240302
["ID","MTS","AMOUNT","RATE_DAILY","PERIOD"]
[316038565,1709331046134,-1423.53,0.00020547,2]
[316038566,1709331046143,-1423.53,0.00020547,2]
[316038567,1709331046152,-1423.53,0.00020547,2]
[316038568,1709331046161,-1423.53,0.00020547,2]
[316038569,1709331046169,-1423.53,0.00020547,2]
[316038570,1709331046178,-1423.53,0.00020547,2]
[316038571,1709331046187,-1423.53,0.00020547,2]
[316038572,1709331046196,-500.0,0.00020547,2]
[316038573,1709331046205,-1423.53,0.00020547,2]
[316038574,1709331046214,-504.49023394,0.00020547,2]
[316038575,1709331046222,-1423.53,0.00020547,2]
[316038576,1709331046231,-1423.555242,0.00020547,2]
[316038577,1709331046241,-500.0,0.00020547,2]
[316038578,1709331046250,-500.0,0.00020547,2]
[316038579,1709331046259,-500.0,0.00020547,2]
[316038580,1709331046268,-500.0,0.00020547,2]
[316038581,1709331046279,-500.0,0.00020547,2]
[316038582,1709331046288,-500.0,0.00020547,2]
[316038583,1709331046297,-500.0,0.00020547,2]
[316038585,1709331046307,-500.0,0.00020547,2]
[316038586,1709331046316,-500.0,0.00020547,2]
[316038587,1709331046325,-500.0,0.00020547,2]
[316038588,1709331046335,-500.0,0.00020547,2]
[316038589,1709331046344,-500.0,0.00020547,2]
[316038590,1709331046353,-500.0,0.00020547,2]
[316038591,1709331046362,-500.0,0.00020547,2]
[316038592,1709331046372,-500.0,0.00020547,2]
[316038593,1709331046381,-500.0,0.00020547,2]
[316038594,1709331046390,-531.47676234,0.00020547,2]
[316038595,1709331046400,-500.0,0.00020547,2]
[316038596,1709331046410,-500.0,0.00020547,2]
[316038597,1709331046418,-500.0,0.00020547,2]
[316038598,1709331046428,-500.0,0.00020547,2]
[316038599,1709331046438,-191.79423129,0.00020547,2]
[316038600,1709331046447,-500.0,0.00020547,2]
[316038601,1709331046457,-500.0,0.00020547,2]
[316038602,1709331046466,-500.0,0.00020547,2]
[316038603,1709331046476,-500.0,0.00020547,2]
[316038604,1709331046486,-500.0,0.00020547,2]
[316038605,1709331046495,-500.0,0.00020547,2]
[316038606,1709331046504,-500.0,0.00020547,2]
[316038607,1709331046514,-500.0,0.00020547,2]
[316038608,1709331046525,-500.0,0.00020547,2]
[316038609,1709331046534,-500.0,0.00020547,2]
[316038610,1709331046544,-500.0,0.00020547,2]
[316038611,1709331046553,-500.0,0.00020547,2]
[316038612,1709331046563,-500.0,0.00020547,2]
[316038613,1709331046572,-500.0,0.00020547,2]
[316038614,1709331046581,-500.0,0.00020547,2]
[316038615,1709331046590,-500.0,0.00020547,2]
[316038616,1709331046600,-500.0,0.00020547,2]
[316038617,1709331046609,-500.0,0.00020547,2]
[316038618,1709331046618,-500.0,0.00020547,2]
[316038620,1709331046627,-500.0,0.00020547,2]
[316038622,1709331046636,-500.0,0.00020547,2]
[316038623,1709331046645,-500.0,0.00020547,2]
[316038624,1709331046655,-399.38338015,0.00020547,2]
[316038626,1709331046664,-500.4947331,0.00020547,2]
[316038627,1709331046673,-500.0,0.00020547,2]
[316038629,1709331046681,-500.0,0.00020547,2]
[316038630,1709331046691,-515.9267702,0.00020547,2]
[316038632,1709331046700,-500.0,0.00020547,2]
[316038634,1709331046710,-500.0,0.00020547,2]
[316038636,1709331046719,-500.0,0.00020547,2]
[316038637,1709331046728,-500.0,0.00020547,2]
[316038638,1709331046738,-201.15106502,0.00020547,2]
[316038639,1709331046747,-500.0,0.00020547,2]
[316038641,1709331046756,-500.0,0.00020547,2]
[316038642,1709331046766,-500.0,0.00020547,2]
[316038643,1709331046776,-500.0,0.00020547,2]
[316038644,1709331046785,-500.0,0.00020547,2]
[316038645,1709331046796,-500.0,0.00020547,2]
[316038646,1709331046805,-592.76973769,0.00020547,2]
[316038647,1709331046814,-1247.01,0.00020547,2]
[316038648,1709331046825,-1247.01,0.00020547,2]
[316038649,1709331046834,-1247.01,0.00020547,2]
[316038650,1709331046843,-1247.01,0.00020547,2]
[316038651,1709331046852,-1247.01,0.00020547,2]
[316038652,1709331046862,-1247.01,0.00020547,2]
[316038653,1709331046871,-1247.01,0.00020547,2]
[316038654,1709331046880,-1247.01,0.00020547,2]
[316038655,1709331046889,-1247.01,0.00020547,2]
[316038656,1709331046898,-1247.01,0.00020547,2]
[316038657,1709331046908,-1247.01,0.00020547,2]
[316038658,1709331046918,-500.0,0.00020547,2]
[316038659,1709331046927,-1247.01,0.00020547,2]
[316038660,1709331046936,-964.49,0.00020547,2]
[316038661,1709331046946,-500.0,0.00020547,2]
[316038662,1709331046954,-1247.01,0.00020547,2]
[316038663,1709331046964,-964.49,0.00020547,2]
[316038664,1709331046973,-1247.01,0.00020547,2]
[316038665,1709331046982,-500.0,0.00020547,2]
[316038666,1709331046991,-1247.01,0.00020547,2]
[316038667,1709331047001,-500.0,0.00020547,2]
[316038668,1709331047010,-964.49,0.00020547,2]
[316038669,1709331047019,-1247.01,0.00020547,2]
[316038670,1709331047029,-500.0,0.00020547,2]
[316038671,1709331047038,-964.49,0.00020547,2]
[316038672,1709331047047,-1247.01,0.00020547,2]
[316038673,1709331047056,-964.49,0.00020547,2]
[316038674,1709331047065,-1078.41,0.00020547,2]
[316038675,1709331047074,-1247.01,0.00020547,2]
[316038676,1709331047083,-964.49,0.00020547,2]
[316038677,1709331047092,-1078.41,0.00020547,2]
[316038678,1709331047101,-500.0,0.00020547,2]
[316038679,1709331047110,-964.49,0.00020547,2]
[316038680,1709331047119,-1247.01,0.00020547,2]
[316038681,1709331047128,-1078.41,0.00020547,2]
[316038682,1709331047138,-500.0,0.00020547,2]
[316038683,1709331047147,-1247.01,0.00020547,2]
[316038684,1709331047156,-964.49,0.00020547,2]
[316038685,1709331047165,-1078.41,0.00020547,2]
[316038686,1709331047174,-500.0,0.00020547,2]
[316038687,1709331047183,-1247.01,0.00020547,2]
[316038688,1709331047193,-964.49,0.00020547,2]
[316038689,1709331047202,-1078.41,0.00020547,2]
[316038690,1709331047212,-500.0,0.00020547,2]
[316038691,1709331047220,-1247.01,0.00020547,2]
[316038692,1709331047230,-964.49,0.00020547,2]
[316038693,1709331047239,-1078.41,0.00020547,2]
[316038694,1709331047248,-500.0,0.00020547,2]
[316038695,1709331047258,-964.49,0.00020547,2]
[316038696,1709331047267,-1247.01,0.00020547,2]
[316038697,1709331047277,-1078.41,0.00020547,2]
[316038698,1709331047286,-500.0,0.00020547,2]
[316038699,1709331047295,-1247.10245189,0.00020547,2]
[316038700,1709331047304,-964.49,0.00020547,2]
[316038701,1709331047313,-509.59248971,0.00020547,2]
[316038702,1709331047322,-964.49,0.00020547,2]
[316038703,1709331047332,-1078.41,0.00020547,2]
[316038704,1709331047341,-500.0,0.00020547,2]
[316038705,1709331047350,-964.49,0.00020547,2]
[316038706,1709331047360,-1078.41,0.00020547,2]
[316038707,1709331047369,-500.0,0.00020547,2]
[316038708,1709331047378,-964.49,0.00020547,2]
[316038709,1709331047388,-1078.41,0.00020547,2]
[316038710,1709331047397,-964.49,0.00020547,2]
[316038711,1709331047406,-1078.41,0.00020547,2]
[316038712,1709331047415,-1078.41,0.00020547,2]
[316038713,1709331047424,-964.49,0.00020547,2]
[316038714,1709331047434,-1078.41,0.00020547,2]
[316038715,1709331047443,-964.49,0.00020547,2]
[316038716,1709331047452,-1078.41,0.00020547,2]
[316038717,1709331047461,-964.49,0.00020547,2]
[316038718,1709331047471,-964.49,0.00020547,2]
[316038719,1709331047480,-1078.41,0.00020547,2]
[316038720,1709331047489,-964.49,0.00020547,2]
[316038721,1709331047499,-1078.41,0.00020547,2]
[316038722,1709331047509,-964.49,0.00020547,2]
[316038723,1709331047518,-1078.41,0.00020547,2]
[316038724,1709331047528,-964.49,0.00020547,2]
[316038725,1709331047537,-1078.41,0.00020547,2]
[316038726,1709331047547,-964.66682508,0.00020547,2]
[316038727,1709331047556,-1078.41,0.00020547,2]
[316038728,1709331047565,-1078.41,0.00020547,2]
[316038729,1709331047575,-1078.41,0.00020547,2]
[316038730,1709331047584,-1078.41,0.00020547,2]
[316038731,1709331047593,-1078.41,0.00020547,2]
[316038732,1709331047602,-1078.63005205,0.00020547,2]
[316038733,1709331047687,-500.0,0.00020547,2]
[316038734,1709331047696,-358.55935707,0.00020547,2]
[316038735,1709331047706,-502.11613099,0.00020547,2]
[316038736,1709331047714,-1252.97,0.00020547,2]
[316038737,1709331047724,-1252.97,0.00020547,2]
[316038738,1709331047733,-1252.97,0.00020547,2]
[316038739,1709331047742,-1252.97,0.00020547,2]
[316038740,1709331047752,-500.0,0.00020547,2]
[316038741,1709331047761,-1252.97,0.00020547,2]
[316038742,1709331047771,-500.0,0.00020547,2]
[316038743,1709331047784,-1252.97,0.00020547,2]
[316038744,1709331047794,-500.0,0.00020547,2]
[316038745,1709331047803,-1252.97,0.00020547,2]
[316038746,1709331047813,-1252.97,0.00020547,2]
[316038747,1709331047823,-500.0,0.00020547,2]
[316038748,1709331047832,-500.0,0.00020547,2]
[316038749,1709331047841,-1252.97,0.00020547,2]
[316038750,1709331047850,-500.0,0.00020547,2]
[316038751,1709331047859,-500.0,0.00020547,2]
[316038752,1709331047869,-1252.97,0.00020547,2]
[316038753,1709331047878,-500.0,0.00020547,2]
[316038754,1709331047887,-975.26,0.00020547,2]
[316038755,1709331047896,-1252.97,0.00020547,2]
[316038756,1709331047905,-500.0,0.00020547,2]
[316038757,1709331047913,-975.26,0.00020547,2]
[316038758,1709331047925,-1252.97,0.00020547,2]
[316038759,1709331047934,-975.26,0.00020547,2]
[316038760,1709331047943,-1252.97,0.00020547,2]
[316038761,1709331047952,-975.26,0.00020547,2]
[316038762,1709331047961,-1252.97,0.00020547,2]
[316038763,1709331047970,-975.26,0.00020547,2]
[316038764,1709331047979,-1252.97,0.00020547,2]
[316038765,1709331047987,-500.0,0.00020547,2]
[316038766,1709331047997,-975.26,0.00020547,2]
[316038767,1709331048006,-1252.97,0.00020547,2]
[316038768,1709331048015,-500.0,0.00020547,2]
[316038769,1709331048023,-975.26,0.00020547,2]
[316038770,1709331048033,-500.0,0.00020547,2]
[316038771,1709331048041,-1252.97,0.00020547,2]
[316038772,1709331048051,-975.26,0.00020547,2]
[316038773,1709331048060,-1252.97,0.00020547,2]
[316038774,1709331048069,-500.0,0.00020547,2]
[316038775,1709331048079,-975.26,0.00020547,2]
[316038776,1709331048088,-1252.97,0.00020547,2]
[316038777,1709331048097,-500.0,0.00020547,2]
[316038778,1709331048107,-500.0,0.00020547,2]
[316038779,1709331048118,-1252.97,0.00020547,2]
[316038780,1709331048128,-500.0,0.00020547,2]
[316038781,1709331048138,-975.26,0.00020547,2]
[316038782,1709331048148,-1252.97,0.00020547,2]
[316038783,1709331048158,-975.26,0.00020547,2]
[316038784,1709331048168,-500.0,0.00020547,2]
[316038785,1709331048177,-1252.97,0.00020547,2]
[316038786,1709331048187,-500.0,0.00020547,2]
[316038787,1709331048196,-975.26,0.00020547,2]
[316038788,1709331048205,-1252.97,0.00020547,2]
[316038789,1709331048215,-975.26,0.00020547,2]
[316038790,1709331048224,-500.0,0.00020547,2]
[316038791,1709331048233,-1253.16499399,0.00020547,2]
[316038792,1709331048242,-500.0,0.00020547,2]
[316038793,1709331048251,-975.26,0.00020547,2]
[316038794,1709331048260,-500.0,0.00020547,2]
[316038795,1709331048269,-975.26,0.00020547,2]
[316038796,1709331048279,-975.26,0.00020547,2]
[316038797,1709331048289,-500.0,0.00020547,2]
[316038798,1709331048298,-975.26,0.00020547,2]
[316038799,1709331048307,-500.0,0.00020547,2]
[316038800,1709331048316,-500.0,0.00020547,2]
[316038801,1709331048326,-500.0,0.00020547,2]
[316038802,1709331048335,-467.56881791,0.00020547,2]
[316038803,1709331048344,-371.80243991,0.00020547,2]
[316038804,1709331048353,-975.26,0.00020547,2]
[316038805,1709331048362,-975.26,0.00020547,2]
[316038806,1709331048372,-975.26,0.00020547,2]
[316038807,1709331048380,-500.0,0.00020547,2]
[316038808,1709331048391,-975.26,0.00020547,2]
[316038809,1709331048400,-500.0,0.00020547,2]
[316038810,1709331048410,-975.26,0.00020547,2]
[316038811,1709331048419,-500.0,0.00020547,2]
[316038812,1709331048428,-975.26,0.00020547,2]
[316038813,1709331048437,-500.0,0.00020547,2]
[316038814,1709331048446,-975.43107986,0.00020547,2]
[316038815,1709331048455,-311.03434348,0.00020547,2]
[316038816,1709331048464,-502.70298707,0.00020547,2]
[316038817,1709331048474,-500.0,0.00020547,2]
[316038818,1709331048484,-500.0,0.00020547,2]
[316038819,1709331048493,-657.487022,0.00020547,2]
[316038820,1709331048502,-500.0,0.00020547,2]
[316038821,1709331048511,-657.487022,0.00020547,2]
[316038822,1709331048521,-500.0,0.00020547,2]
[316038823,1709331048530,-657.487022,0.00020547,2]
[316038824,1709331048539,-500.0,0.00020547,2]
[316038825,1709331048548,-657.487022,0.00020547,2]
[316038826,1709331048558,-500.0,0.00020547,2]
[316038827,1709331048566,-657.487022,0.00020547,2]
[316038828,1709331048576,-500.0,0.00020547,2]
[316038829,1709331048585,-657.487022,0.00020547,2]
[316038830,1709331048594,-280.98705708,0.00020547,2]
[316038831,1709331048603,-657.487022,0.00020547,2]
[316038832,1709331048612,-657.487022,0.00020547,2]
[316038833,1709331048622,-657.487022,0.00020547,2]
[316038834,1709331048631,-657.487022,0.00020547,2]
[316038835,1709331048640,-657.487022,0.00020547,2]
[316038836,1709331048649,-657.487022,0.00020547,2]
[316038837,1709331048658,-657.487022,0.00020547,2]
[316038838,1709331048667,-657.487022,0.00020547,2]
[316038839,1709331048677,-657.487022,0.00020547,2]
[316038840,1709331048686,-657.487022,0.00020547,2]
[316038841,1709331048695,-657.487022,0.00020547,2]
[316038842,1709331048704,-657.48701243,0.00020547,2]
[316038843,1709331048713,-570.57,0.00020548,2]
[316038844,1709331048722,-570.57,0.00020548,2]
[316038845,1709331048731,-906.94,0.00020548,2]
[316038846,1709331048740,-906.94,0.00020548,2]
[316038847,1709331048749,-680.17,0.00020548,2]
[316038848,1709331048757,-680.17,0.00020548,2]
[316038849,1709331048766,-500.0,0.00020548,2]
[316038850,1709331048778,-500.0,0.00020548,2]
[316038851,1709331048788,-1501.09,0.00020548,2]
[316038852,1709331048804,-1501.09,0.00020548,2]
[316038853,1709331048814,-500.0,0.00020548,2]
[316038854,1709331048823,-500.0,0.00020548,2]
[316038855,1709331048832,-5416.77,0.00020548,2]
[316038856,1709331048842,-5416.77,0.00020548,2]
[316038857,1709331048851,-5416.77,0.00020548,2]
[316038858,1709331048861,-5416.77,0.00020548,2]
[316038859,1709331048871,-5416.77,0.00020548,2]
[316038860,1709331048880,-5416.91003786,0.00020548,2]
[316038861,1709331048889,-2182.43,0.00020548,2]
[316038862,1709331048899,-2182.43,0.00020548,2]
[316038863,1709331048908,-2182.43,0.00020548,2]
[316038864,1709331048917,-2182.43,0.00020548,2]
[316038865,1709331048926,-2182.43,0.00020548,2]
[316038866,1709331048935,-2182.43613509,0.00020548,2]
[316038867,1709331048944,-1746.3,0.00020548,2]
[316038868,1709331048953,-1746.3,0.00020548,2]
[316038869,1709331048962,-1746.3,0.00020548,2]
[316038870,1709331048971,-1746.3,0.00020548,2]
[316038871,1709331048980,-1746.3,0.00020548,2]
[316038872,1709331048988,-1746.53711065,0.00020548,2]
[316038873,1709331048998,-24688.60243291,0.00020549,4]
[316038874,1709331049007,-570.57,0.00020552,2]
[316038875,1709331049016,-906.94,0.00020552,2]
[316038876,1709331049026,-680.17,0.00020552,2]
[316038877,1709331049035,-680.17,0.00020552,2]
[316038878,1709331049044,-680.17,0.00020552,2]
[316038879,1709331049052,-680.17,0.00020552,2]
[316038880,1709331049061,-680.27636981,0.00020552,2]
[316038881,1709331049070,-442.66280447,0.00020552,2]
[316038882,1709331049078,-1501.09,0.00020552,2]
[316038883,1709331049087,-1501.09,0.00020552,2]
[316038884,1709331049096,-1501.09,0.00020552,2]
[316038885,1709331049105,-1501.09,0.00020552,2]
[316038886,1709331049114,-1501.22727978,0.00020552,2]
[316038887,1709331049123,-508.32552847,0.00020552,2]
[316038888,1709331049132,-570.57,0.00020553,2]
[316038889,1709331049142,-570.57,0.00020553,2]
[316038890,1709331049151,-570.57,0.00020553,2]
[316038891,1709331049160,-570.57,0.00020553,2]
[316038892,1709331049169,-570.57,0.00020553,2]
[316038893,1709331049178,-570.57,0.00020553,2]
[316038894,1709331049188,-570.76982971,0.00020553,2]
[316038895,1709331049197,-906.94,0.00020553,2]
[316038896,1709331049206,-906.94,0.00020553,2]
[316038897,1709331049215,-906.94,0.00020553,2]
[316038898,1709331049224,-906.94,0.00020553,2]
[316038899,1709331049233,-906.94,0.00020553,2]
[316038900,1709331049242,-906.94,0.00020553,2]
[316038901,1709331049250,-907.02293923,0.00020553,2]
[316038902,1709331049260,-3017.13681628,0.00020554,2]
[316038903,1709331049269,-1368.2980123,0.00020554,4]
[316038904,1709331049279,-50000.0,0.00020554,4]
[316038905,1709331049288,-5000.0,0.00020558,5]
[316038906,1709331049297,-50000.0,0.00020559,5]
[316038907,1709331049306,-50000.0,0.0002056,2]
[316038908,1709331049316,-50000.0,0.00020568,5]
[316038909,1709331049325,-73297.62007322,0.00020568,5]
[316038910,1709331049334,-21520.82585836,0.0002057,2]
[316038911,1709331049343,-49263.95377664,0.00020573,5]
[316038912,1709331049352,-9174.55611668,0.00020573,4]
[316038913,1709331049362,-419.62073679,0.00020661,2]
[316038914,1709331049371,-179.83745862,0.00020661,2]
[316038915,1709331049380,-31661.81429855,0.00020661,3]
[316038916,1709331049389,-2732.8562486,0.00020661,2]
[316038917,1709331049398,-241.8751506,0.00020661,2]
[316038918,1709331049408,-6711.38039209,0.00020661,2]
[316038919,1709331049417,-170.264845,0.00020674,2]
[316038920,1709331049426,-926.78809678,0.00020796,2]
[316038921,1709331049436,-1187.61,0.00020888,2]
[316038922,1709331049445,-1187.61,0.00020888,2]
[316038923,1709331049454,-1187.61,0.00020888,2]
[316038924,1709331049464,-1187.61,0.00020888,2]
[316038925,1709331049473,-1187.61,0.00020888,2]
[316038926,1709331049483,-1187.61,0.00020888,2]
[316038927,1709331049493,-1187.61,0.00020888,2]
[316038928,1709331049502,-1187.61,0.00020888,2]
[316038929,1709331049511,-1187.61,0.00020888,2]
[316038930,1709331049520,-1187.61,0.00020888,2]
[316038931,1709331049532,-8234.00193465,0.0002089,2]
[316038932,1709331049541,-1000.0,0.0002095,2]
[316038933,1709331049550,-1212.41219105,0.00020998,2]
[316038934,1709331049559,-1500.0,0.00021,2]
[316038935,1709331049644,-300.0,0.00021,9]
[316038936,1709331049654,-155.00310006,0.00021119,2]
[316038937,1709331049664,-2612.3284,0.0002125,7]
[316038938,1709331049674,-170.264845,0.00021422,2]
[316038939,1709331049682,-862.78718072,0.00021598,2]
[316038940,1709331049692,-621.94681249,0.00021813,2]
[316038941,1709331049701,-635.33940484,0.00021836,2]
[316038942,1709331049710,-400.24472666,0.00021918,2]
[316038943,1709331049719,-862.78718072,0.00021982,2]
[316038944,1709331049729,-327.22275751,0.00022,2]
[316038945,1709331049738,-157.14741337,0.00022,2]
[316038946,1709331049747,-1212.41219105,0.00022258,2]
[316038947,1709331049756,-5000.0,0.00022274,5]
[316038948,1709331049765,-1000.0,0.00022334,5]
[316038949,1709331049775,-1000.0,0.00022334,5]
[316038950,1709331049786,-862.78718072,0.00022365,2]
[316038951,1709331049799,-493.069484,0.000225,10]
[316038952,1709331049808,-153.0,0.00022712,2]
[316038953,1709331049818,-5000.0,0.00022738,5]
[316038954,1709331049827,-862.78718072,0.00022749,2]
[316038955,1709331049837,-620.09734062,0.00022904,2]
[316038956,1709331049847,-153.0,0.00022986,2]
[316038957,1709331049857,-306.0,0.00022986,2]
[316038958,1709331049868,-200.7008514,0.00022986,2]
[316038959,1709331049878,-153.0,0.00022986,2]
[316038960,1709331049887,-200.7008514,0.00022986,2]
[316038961,1709331049896,-153.0,0.00022986,2]
[316038962,1709331049905,-200.7008514,0.00022986,2]
[316038963,1709331049914,-153.0,0.00022986,2]
[316038964,1709331049924,-200.7008514,0.00022986,2]
[316038965,1709331049933,-153.0,0.00022986,2]
[316038966,1709331049943,-200.7008514,0.00022986,2]
[316038967,1709331049952,-200.7008514,0.00022986,2]
[316038968,1709331049962,-153.0,0.00022986,2]
[316038969,1709331049971,-153.0,0.00022986,2]
[316038970,1709331049980,-200.7008514,0.00022986,2]
[316038971,1709331049989,-153.0,0.00022986,2]
[316038972,1709331049999,-199.4619628,0.00022986,2]
[316038973,1709331050008,-153.0,0.00022986,2]
[316038974,1709331050017,-200.2413971,0.00022986,2]
[316038975,1709331050026,-203.9420089,0.00022986,2]
[316038976,1709331050036,-153.0,0.00022986,2]
[316038977,1709331050045,-370.9000002,0.00022986,2]
[316038978,1709331050054,-2788.91634066,0.00023,2]
[316038979,1709331050063,-862.78718072,0.00023133,2]
[316038980,1709331050072,-5000.0,0.00023138,5]
[316038981,1709331050081,-5000.0,0.0002314,5]
[316038982,1709331050090,-5000.0,0.00023141,5]
[316038983,1709331050099,-1000.0,0.00023171,5]
[316038984,1709331050108,-200.0,0.000233,2]
[316038985,1709331050118,-272.22,0.00023426,7]
[316038986,1709331050127,-862.78718072,0.00023516,2]
[316038987,1709331050136,-1261.55816418,0.0002386,5]
[316038988,1709331050146,-234.5338,0.0002388,2]
[316038989,1709331050155,-1766.00936688,0.000239,2]
[316038990,1709331050164,-862.78718072,0.000239,2]
[316038991,1709331050173,-200.7008514,0.00023945,2]
[316038992,1709331050182,-200.7008514,0.00023945,2]
[316038993,1709331050191,-200.5027851,0.00023945,2]
[316038994,1709331050201,-173.93222042,0.00023998,2]
[316038995,1709331050210,-240.49886462,0.00023998,2]
[316038996,1709331050219,-263.21964131,0.00023998,7]
[316038997,1709331050228,-812.22817838,0.00023998,2]
[316038998,1709331050238,-324.72973504,0.00023998,2]
[316038999,1709331050247,-595.5942201,0.00023998,2]
[316039000,1709331050256,-285.52119037,0.00023998,2]
[316039001,1709331050265,-508.95946117,0.00023998,2]
[316039002,1709331050274,-198.32516916,0.00023998,2]
[316039003,1709331050285,-1091.1082286,0.00023998,5]
[316039004,1709331050295,-308.79231473,0.00023998,2]
[316039005,1709331050305,-155.20176229,0.00023998,2]
[316039006,1709331050315,-523.71030091,0.00023998,3]
[316039007,1709331050324,-179.22431201,0.00023998,2]
[316039008,1709331050334,-280.37029672,0.00023998,2]
[316039009,1709331050343,-202.60745563,0.00023998,2]
[316039010,1709331050352,-197.5903061,0.00023998,2]
[316039011,1709331050361,-158.82433248,0.00023998,2]
[316039012,1709331050371,-1171.69564882,0.00023998,2]
[316039013,1709331050380,-262.13577343,0.00023998,2]
[316039014,1709331050389,-200.85706016,0.00023998,2]
[316039015,1709331050399,-300.22703876,0.00023998,2]
[316039016,1709331050408,-260.50442355,0.00023998,2]
[316039017,1709331050417,-201.7351925,0.00023998,2]
[316039018,1709331050427,-155.25921865,0.00023998,2]
[316039019,1709331050437,-205.9203372,0.00023998,2]
[316039020,1709331050447,-162.11854936,0.00023998,2]
[316039021,1709331050456,-159.87982714,0.00023998,2]
[316039022,1709331050466,-10098.67327328,0.00023998,2]
[316039023,1709331050475,-300.89577802,0.00023998,2]
[316039024,1709331050485,-160.40689308,0.00023998,2]
[316039025,1709331050494,-169.08281547,0.00023998,2]
[316039026,1709331050504,-211.29666627,0.00023998,2]
[316039027,1709331050513,-200.01171087,0.00023998,2]
[316039028,1709331050522,-200.0,0.00023998,2]
[316039029,1709331050532,-206.11586222,0.00023998,2]
[316039030,1709331050541,-300.2820096,0.00023998,2]
[316039031,1709331050550,-1654.30348637,0.00023998,2]
[316039032,1709331050559,-200.54373759,0.00023998,2]
[316039033,1709331050569,-155.08219356,0.00023998,2]
[316039034,1709331050578,-237.94257384,0.00023998,2]
[316039035,1709331050587,-155.07133281,0.00023998,2]
[316039036,1709331050597,-26413.1787953,0.00023998,2]
[316039037,1709331050607,-1992.97014433,0.00023998,2]
[316039038,1709331050617,-371.14057692,0.00023998,2]
[316039039,1709331050627,-282.54840723,0.00023998,2]
[316039040,1709331050636,-247.69144409,0.00023998,2]
[316039041,1709331050645,-176.94616105,0.00023998,2]
[316039042,1709331050655,-205.34317386,0.00023998,2]
[316039043,1709331050664,-441.36557175,0.00023998,2]
[316039044,1709331050674,-185.40185691,0.00023998,2]
[316039045,1709331050684,-219.95258249,0.00023998,2]
[316039046,1709331050693,-478.73760126,0.00023998,2]
[316039047,1709331050702,-295.87885382,0.00023998,2]
[316039048,1709331050712,-429.41243131,0.00023998,2]
[316039049,1709331050721,-562.47634038,0.00023998,2]
[316039050,1709331050731,-263.31692282,0.00023998,2]
[316039051,1709331050740,-207.97712337,0.00023998,2]
[316039052,1709331050750,-537403.91353577,0.00024,5]
[316039053,1709331050837,-12198.03127673,0.00024,5]
[316039054,1709331050849,-10674.16000055,0.00024,5]
[316039055,1709331050861,-1000.0,0.00024,5]
[316039056,1709331050873,-1576.21489929,0.00024,5]
[316039057,1709331050900,-20460.93682902,0.00024,5]
[316039058,1709331050910,-5455.15569653,0.00024,5]
[316039059,1709331050922,-5447.63666042,0.00024,5]
[316039060,1709331050932,-7427.67999714,0.00024,5]
[316039061,1709331050944,-8358.61404867,0.00024,5]
[316039062,1709331050955,-47651.63714224,0.00024,5]
[316039063,1709331050966,-529.68975891,0.00024,5]
[316039064,1709331050976,-3102.01242891,0.00024,5]
[316039065,1709331051040,-264.46625028,0.00020535,2]
[316039066,1709331051051,-5193.40288648,0.00020535,2]
[316039067,1709331051127,-716.68924705,0.00020535,2]
[316039068,1709331051138,-2826.444806,0.00020535,2]
[316039069,1709331051150,-1533.16044773,0.00020535,2]
[316039084,1709331508751,3000.0,0.0003,120]
[316039276,1709332237925,-179.57077703,0.00019172,2]
[316039277,1709332237935,-155.06047358,0.00019173,2]
[316039278,1709332237944,-1879.76552181,0.00019177,2]